bitfinex-derivatives/quotes_BTCF0:USTF0_20260104
["timestamp","ask_amount","ask_price","bid_price","bid_amount"]
[1767510925056,0.0001641,91406.0,91394.0,0.010946]
[1767510925658,0.0001641,91406.0,91391.0,0.0111101]
[1767510925852,0.0001641,91406.0,91392.0,0.010946]
[1767510928860,0.0001641,91406.0,91394.0,0.010946]
[1767510930664,0.0001641,91406.0,91391.0,0.0111101]
[1767510930861,0.0001641,91406.0,91393.0,0.010946]
[1767510934371,0.0001641,91406.0,91392.0,0.00947955]
[1767510934871,0.0001641,91406.0,91392.0,0.02042555]
[1767510935470,0.0111091,91406.0,91392.0,0.02042555]
[1767510935768,0.02522114,91405.0,91392.0,0.02042555]
[1767510935969,0.0111091,91406.0,91392.0,0.02042555]
[1767510936153,0.02522113,91405.0,91392.0,0.02042555]
[1767510936353,0.0111091,91406.0,91392.0,0.02042555]
[1767510936557,0.010945,91404.0,91392.0,0.00947955]
[1767510936969,0.0001641,91406.0,91391.0,0.0001641]
[1767510937165,0.01244352,91404.0,91391.0,0.0001641]
[1767510937466,0.00343504,91401.0,91391.0,0.0001641]
[1767510937670,0.00900848,91398.0,91383.0,0.09308]
[1767510937870,0.00900848,91398.0,91382.0,0.09308]
[1767510938966,0.00900848,91398.0,91378.0,0.01887508]
[1767510939172,0.01244488,91398.0,91378.0,0.01887508]
[1767510939372,0.010946,91395.0,91379.0,0.010948]
[1767510939769,0.01995448,91398.0,91381.0,0.02042755]
[1767510940072,0.010946,91398.0,91382.0,0.00947955]
[1767510940472,0.010946,91398.0,91383.0,0.010947]
[1767510940673,0.010946,91398.0,91383.0,0.02042655]
[1767510941273,0.010945,91401.0,91383.0,0.02042655]
[1767510941773,0.010945,91401.0,91384.0,0.00947955]
[1767510942072,0.010945,91401.0,91385.0,0.02042655]
[1767510943677,0.010945,91399.0,91385.0,0.02042655]
[1767510944366,0.010945,91399.0,91385.0,0.00947955]
[1767510945271,0.010945,91399.0,91384.0,0.010947]
[1767510945774,0.010945,91399.0,91385.0,0.00947955]
[1767510947577,0.010945,91400.0,91386.0,0.010947]
[1767510948281,0.010945,91400.0,91386.0,0.00947955]
[1767510948670,0.010946,91398.0,91386.0,0.00947955]
[1767510949774,0.010945,91400.0,91386.0,0.00947955]
[1767510950571,0.010945,91400.0,91384.0,0.010947]
[1767510950776,0.010946,91398.0,91384.0,0.010947]
[1767510952883,0.01227093,91401.0,91383.0,0.00947955]
[1767510953085,0.00326245,91397.0,91377.0,0.09308]
[1767510953584,0.01227093,91397.0,91377.0,0.10255955]
[1767510953784,0.01227093,91397.0,91378.0,0.00947955]
[1767510954283,0.010946,91394.0,91379.0,0.010948]
[1767510954584,0.010947,91391.0,91379.0,0.00947955]
[1767510954781,0.010946,91393.0,91379.0,0.00947955]
[1767510955485,0.010946,91396.0,91381.0,0.00947955]
[1767510955678,0.02508392,91395.0,91381.0,0.00947955]
[1767510955878,0.010946,91396.0,91381.0,0.00947955]
[1767510956085,0.02508394,91395.0,91381.0,0.00947955]
[1767510956286,0.010946,91396.0,91381.0,0.00947955]
[1767510956584,0.02508313,91395.0,91381.0,0.00947955]
[1767510956784,0.010946,91396.0,91381.0,0.00947955]
[1767510956985,0.03602908,91395.0,91381.0,0.00947955]
[1767510957181,0.010946,91395.0,91381.0,0.00947955]
[1767510959089,0.010946,91394.0,91381.0,0.00947955]
[1767510960895,0.0097041,91400.0,91381.0,0.02042755]
[1767510961098,0.010946,91395.0,91381.0,0.02042755]
[1767510961391,0.010946,91394.0,91381.0,0.00947955]
[1767510967197,0.010946,91393.0,91381.0,0.00947955]
[1767510967798,0.010946,91393.0,91378.0,0.010948]
[1767510968001,0.010946,91393.0,91378.0,0.02079432]
[1767510969599,0.010946,91393.0,91379.0,0.00984632]
[1767510970797,0.010946,91393.0,91379.0,0.02079432]
[1767510972405,0.010946,91395.0,91380.0,0.010948]
[1767510975106,0.06061609,91400.0,91380.0,0.010948]
[1767510975107,0.010946,91393.0,91380.0,0.010948]
[1767510978308,0.010946,91393.0,91379.0,0.00984632]
[1767510980909,0.010946,91395.0,91380.0,0.010948]
[1767510981109,0.02518859,91394.0,91380.0,0.010948]
[1767510981306,0.02518859,91393.0,91380.0,0.010948]
[1767510981506,0.010946,91395.0,91380.0,0.010948]
[1767510981808,0.02518972,91394.0,91380.0,0.010948]
[1767510982111,0.02518972,91393.0,91380.0,0.010948]
[1767510982305,0.010946,91395.0,91380.0,0.010948]
[1767510982605,0.02519116,91394.0,91380.0,0.010948]
[1767510982796,0.02519116,91393.0,91380.0,0.010948]
[1767510983001,0.010946,91395.0,91380.0,0.010948]
[1767510983197,0.02519118,91394.0,91380.0,0.010948]
[1767510983401,0.02519118,91393.0,91380.0,0.010948]
[1767510983607,0.010946,91395.0,91380.0,0.010948]
[1767510983808,0.02519296,91394.0,91380.0,0.010948]
[1767510984008,0.02519296,91393.0,91380.0,0.010948]
[1767510984209,0.010946,91395.0,91380.0,0.010948]
[1767510984410,0.02519713,91394.0,91379.0,0.00984632]
[1767510984714,0.010946,91392.0,91379.0,0.00984632]
[1767510985913,0.010946,91394.0,91379.0,0.02079432]
[1767510986113,0.02519752,91393.0,91379.0,0.02079432]
[1767510986312,0.010946,91394.0,91379.0,0.02079432]
[1767510986508,0.02516613,91393.0,91379.0,0.02079432]
[1767510986710,0.010946,91394.0,91379.0,0.02079432]
[1767510986909,0.02516615,91393.0,91379.0,0.02079432]
[1767510987115,0.010946,91394.0,91379.0,0.02079432]
[1767510987316,0.02516934,91393.0,91379.0,0.02079432]
[1767510987613,0.010946,91394.0,91379.0,0.02079432]
[1767510987814,0.02516954,91393.0,91379.0,0.02079432]
[1767510988014,0.010946,91394.0,91379.0,0.02079432]
[1767510988214,0.02516956,91393.0,91379.0,0.02079432]
[1767510988515,0.010946,91394.0,91379.0,0.02079432]
[1767510988710,0.02516999,91393.0,91379.0,0.02079432]
[1767510989008,0.010946,91394.0,91379.0,0.02079432]
[1767510989210,0.036116,91393.0,91379.0,0.02079432]
[1767510989411,0.010946,91393.0,91379.0,0.02079432]
[1767510990601,0.010946,91393.0,91380.0,0.010948]
[1767510993312,0.010946,91393.0,91378.0,0.0203047]
[1767510994211,0.010946,91393.0,91379.0,0.010948]
[1767510995419,0.010946,91395.0,91381.0,0.010948]
[1767510995624,0.0251791,91394.0,91381.0,0.010948]
[1767510995813,0.0251791,91393.0,91381.0,0.010948]
[1767510996012,0.010946,91395.0,91381.0,0.010948]
[1767510996310,0.02517912,91394.0,91381.0,0.010948]
[1767510996510,0.02517912,91393.0,91381.0,0.010948]
[1767510996720,0.010946,91395.0,91381.0,0.010948]
[1767510996923,0.02517915,91394.0,91381.0,0.010948]
[1767510997115,0.02517915,91393.0,91381.0,0.010948]
[1767510997425,0.010946,91395.0,91381.0,0.010948]
[1767510997613,0.0251792,91394.0,91381.0,0.010948]
[1767510997912,0.0251792,91393.0,91381.0,0.010948]
[1767510998107,0.010946,91395.0,91381.0,0.010948]
[1767510998308,0.02517917,91394.0,91381.0,0.010948]
[1767510998608,0.02517917,91393.0,91381.0,0.010948]
[1767510998812,0.010946,91395.0,91381.0,0.010948]
[1767510999008,0.02517932,91394.0,91381.0,0.010948]
[1767510999227,0.02517932,91393.0,91381.0,0.010948]
[1767510999523,0.010946,91395.0,91381.0,0.010948]
[1767510999724,0.03612528,91394.0,91381.0,0.010948]
[1767511000031,0.02517928,91393.0,91379.0,0.010948]
[1767511000216,0.010946,91394.0,91379.0,0.010948]
[1767511000417,0.02517925,91393.0,91379.0,0.010948]
[1767511000621,0.010946,91394.0,91379.0,0.010948]
[1767511000825,0.02517926,91393.0,91379.0,0.010948]
[1767511001120,0.0134745,91399.0,91382.0,0.010947]
[1767511001320,0.02517939,91398.0,91382.0,0.010947]
[1767511001519,0.02517939,91397.0,91382.0,0.010947]
[1767511001725,0.02517939,91396.0,91382.0,0.010947]
[1767511001924,0.02517939,91395.0,91382.0,0.010947]
[1767511002128,0.02517939,91394.0,91382.0,0.010947]
[1767511002323,0.02517939,91393.0,91382.0,0.010947]
[1767511002518,0.010946,91396.0,91382.0,0.010947]
[1767511002718,0.03612573,91395.0,91382.0,0.010947]
[1767511003017,0.02517973,91394.0,91382.0,0.010947]
[1767511003217,0.02517973,91394.0,91380.0,0.010948]
[1767511004129,0.02517973,91394.0,91378.0,0.0203047]
[1767511004427,0.02517973,91393.0,91380.0,0.010948]
[1767511005030,0.02517973,91393.0,91378.0,0.010948]
[1767511005532,0.03612573,91393.0,91378.0,0.010948]
[1767511005732,0.010946,91393.0,91378.0,0.010948]
[1767511005924,0.010946,91394.0,91378.0,0.010948]
[1767511006126,0.0251829,91393.0,91378.0,0.010948]
[1767511006321,0.010946,91394.0,91378.0,0.010948]
[1767511006521,0.02518385,91393.0,91378.0,0.010948]
[1767511006724,0.010946,91394.0,91380.0,0.010948]
[1767511006922,0.02518603,91393.0,91380.0,0.010948]
[1767511007129,0.010946,91394.0,91380.0,0.010948]
[1767511007328,0.02518606,91393.0,91380.0,0.010948]
[1767511007533,0.010946,91394.0,91380.0,0.010948]
[1767511007727,0.02518623,91393.0,91380.0,0.010948]
[1767511007929,0.010946,91394.0,91380.0,0.010948]
[1767511008131,0.02518758,91393.0,91380.0,0.010948]
[1767511008430,0.010946,91394.0,91380.0,0.010948]
[1767511008631,0.03613348,91393.0,91378.0,0.010948]
[1767511008934,0.010946,91395.0,91379.0,0.010948]
[1767511009133,0.02518748,91394.0,91379.0,0.010948]
[1767511009335,0.02518748,91393.0,91379.0,0.010948]
[1767511009534,0.010946,91395.0,91379.0,0.010948]
[1767511009734,0.02518752,91394.0,91379.0,0.010948]
[1767511009936,0.02518752,91393.0,91379.0,0.010948]
[1767511010141,0.010946,91395.0,91379.0,0.010948]
[1767511010333,0.02518748,91394.0,91379.0,0.010948]
[1767511010532,0.02518748,91393.0,91379.0,0.010948]
[1767511010832,0.010946,91395.0,91379.0,0.010948]
[1767511011033,0.02518748,91394.0,91380.0,0.010948]
[1767511011234,0.02518748,91393.0,91380.0,0.0203047]
[1767511011436,0.010946,91395.0,91380.0,0.0203047]
[1767511011633,0.0251879,91394.0,91381.0,0.010948]
[1767511011838,0.0251879,91393.0,91381.0,0.010948]
[1767511012140,0.010946,91396.0,91381.0,0.010948]
[1767511012339,0.02519213,91395.0,91381.0,0.010948]
[1767511012540,0.02519213,91394.0,91381.0,0.010948]
[1767511012744,0.02519213,91393.0,91381.0,0.010948]
[1767511012935,0.010946,91396.0,91381.0,0.010948]
[1767511013136,0.02519209,91395.0,91381.0,0.010948]
[1767511013434,0.02519209,91394.0,91381.0,0.010948]
[1767511013637,0.02519209,91393.0,91381.0,0.010948]
[1767511013835,0.010946,91396.0,91381.0,0.0203047]
[1767511014040,0.02519495,91395.0,91381.0,0.0203047]
[1767511014240,0.02519495,91394.0,91381.0,0.0203047]
[1767511014436,0.02519495,91393.0,91381.0,0.0203047]
[1767511014744,0.09308,91404.0,91390.0,0.0203027]
[1767511015038,0.02519541,91403.0,91390.0,0.0203027]
[1767511015232,0.02519541,91402.0,91390.0,0.010946]
[1767511015432,0.02519541,91401.0,91390.0,0.010946]
[1767511015633,0.010945,91404.0,91390.0,0.010946]
[1767511015634,0.02519541,91400.0,91390.0,0.010946]
[1767511015942,0.02519541,91399.0,91390.0,0.010946]
[1767511016142,0.02519541,91398.0,91390.0,0.010946]
[1767511016343,0.010945,91404.0,91390.0,0.010946]
[1767511016538,0.03613409,91403.0,91390.0,0.010946]
[1767511016739,0.02518909,91402.0,91390.0,0.010946]
[1767511017240,0.02518909,91402.0,91392.0,0.010946]
[1767511017446,0.02518909,91401.0,91392.0,0.010946]
[1767511017652,0.02518909,91400.0,91392.0,0.010946]
[1767511017839,0.02518909,91399.0,91392.0,0.010946]
[1767511018137,0.010945,91405.0,91392.0,0.010946]
[1767511018334,0.02518561,91404.0,91394.0,0.0093567]
[1767511018537,0.02518561,91403.0,91395.0,0.0093567]
[1767511018737,0.02518561,91402.0,91395.0,0.0093567]
[1767511018941,0.02518561,91401.0,91395.0,0.0093567]
[1767511019247,0.02518561,91400.0,91395.0,0.0093567]
[1767511019547,0.104025,91407.0,91395.0,0.0093567]
[1767511019847,0.02518199,91405.0,91394.0,0.010946]
[1767511020037,0.02518199,91404.0,91394.0,0.010946]
[1767511020346,0.02518199,91403.0,91394.0,0.010946]
[1767511020645,0.02518199,91402.0,91394.0,0.010946]
[1767511020837,0.0111091,91406.0,91392.0,0.0203027]
[1767511021036,0.03612676,91405.0,91392.0,0.0203027]
[1767511021246,0.02518176,91404.0,91392.0,0.0203027]
[1767511021546,0.02518176,91403.0,91392.0,0.0203027]
[1767511021850,0.02518176,91402.0,91392.0,0.0203027]
[1767511022148,0.010945,91405.0,91392.0,0.0203027]
[1767511022347,0.02517873,91404.0,91392.0,0.0203027]
[1767511022549,0.02517873,91403.0,91392.0,0.0203027]
[1767511022743,0.02517873,91402.0,91392.0,0.0093567]
[1767511022943,0.010945,91404.0,91392.0,0.0093567]
[1767511023139,0.02517803,91403.0,91392.0,0.0093567]
[1767511023446,0.02517803,91402.0,91392.0,0.0093567]
[1767511023747,0.010945,91404.0,91392.0,0.0093567]
[1767511023932,0.02517707,91403.0,91392.0,0.0093567]
[1767511024135,0.02517707,91402.0,91392.0,0.0093567]
[1767511024335,0.010945,91404.0,91392.0,0.0093567]
[1767511024548,0.0251762,91403.0,91392.0,0.0093567]
[1767511024743,0.010945,91404.0,91392.0,0.0093567]
[1767511024949,0.02517622,91403.0,91392.0,0.0093567]
[1767511025138,0.0001641,91406.0,91393.0,0.010946]
[1767511025450,0.02517618,91405.0,91393.0,0.010946]
[1767511025652,0.02517618,91404.0,91393.0,0.010946]
[1767511025845,0.02517618,91403.0,91393.0,0.010946]
[1767511026045,0.0001641,91406.0,91393.0,0.010946]
[1767511026348,0.02517842,91405.0,91388.0,0.00968077]
[1767511026648,0.02517842,91404.0,91394.0,0.010946]
[1767511026833,0.02517842,91403.0,91394.0,0.010946]
[1767511027038,0.02517842,91402.0,91394.0,0.010946]
[1767511027348,0.0001641,91406.0,91394.0,0.010946]
[1767511027650,0.02517493,91405.0,91391.0,0.02062677]
[1767511027839,0.02517493,91404.0,91391.0,0.02062677]
[1767511028039,0.02517493,91403.0,91391.0,0.02062677]
[1767511028242,0.02517493,91402.0,91391.0,0.02062677]
[1767511028551,0.02517502,91401.0,91391.0,0.02062677]
[1767511028747,0.0001641,91406.0,91391.0,0.02062677]
[1767511028748,0.010945,91405.0,91391.0,0.02062677]
[1767511028947,0.02517505,91404.0,91391.0,0.02062677]
[1767511029147,0.02517505,91403.0,91391.0,0.02062677]
[1767511029349,0.02517505,91402.0,91391.0,0.02062677]
[1767511029549,0.02517505,91401.0,91391.0,0.02062677]
[1767511029742,0.02517495,91400.0,91391.0,0.02062677]
[1767511029941,0.02517495,91399.0,91391.0,0.02062677]
[1767511030153,0.010945,91405.0,91391.0,0.02062677]
[1767511030453,0.025175,91404.0,91391.0,0.010946]
[1767511030642,0.025175,91403.0,91391.0,0.010946]
[1767511030845,0.025175,91402.0,91391.0,0.010946]
[1767511031044,0.025175,91401.0,91391.0,0.010946]
[1767511031244,0.025175,91400.0,91391.0,0.010946]
[1767511031544,0.025175,91399.0,91391.0,0.010946]
[1767511031747,0.010945,91405.0,91391.0,0.010946]
[1767511031945,0.02517591,91404.0,91391.0,0.010946]
[1767511032249,0.02517591,91403.0,91391.0,0.010946]
[1767511032443,0.02517591,91402.0,91391.0,0.010946]
[1767511032643,0.02517591,91401.0,91388.0,0.02062777]
[1767511032855,0.02517591,91400.0,91390.0,0.010947]
[1767511033047,0.02517591,91399.0,91390.0,0.010947]
[1767511033248,0.010945,91403.0,91390.0,0.010947]
[1767511033458,0.02517743,91402.0,91390.0,0.010947]
[1767511033754,0.02517743,91401.0,91390.0,0.010947]
[1767511033955,0.02517743,91400.0,91390.0,0.010947]
[1767511034156,0.02517743,91399.0,91390.0,0.010947]
[1767511034455,0.010945,91403.0,91390.0,0.010947]
[1767511034656,0.02517789,91402.0,91390.0,0.010947]
[1767511034955,0.02517789,91401.0,91390.0,0.010947]
[1767511035162,0.02517789,91400.0,91390.0,0.010947]
[1767511035345,0.02517789,91399.0,91390.0,0.010947]
[1767511035547,0.010945,91403.0,91390.0,0.010947]
[1767511035844,0.02517754,91402.0,91390.0,0.010947]
[1767511036046,0.02517754,91401.0,91390.0,0.010947]
[1767511036244,0.02517754,91400.0,91390.0,0.010947]
[1767511036444,0.02517754,91399.0,91390.0,0.010947]
[1767511036642,0.010945,91403.0,91390.0,0.010947]
[1767511036842,0.02510746,91402.0,91390.0,0.010947]
[1767511037155,0.02510746,91401.0,91390.0,0.010947]
[1767511037456,0.02510746,91400.0,91392.0,0.010946]
[1767511037657,0.010945,91403.0,91392.0,0.010946]
[1767511037862,0.0251085,91402.0,91392.0,0.010946]
[1767511038062,0.0251085,91401.0,91392.0,0.010946]
[1767511038254,0.0251085,91400.0,91392.0,0.010946]
[1767511038454,0.010945,91403.0,91392.0,0.010946]
[1767511038655,0.02510953,91402.0,91392.0,0.010946]
[1767511038855,0.02510953,91401.0,91392.0,0.010946]
[1767511039055,0.00437983,91397.0,91368.0,0.09308]
[1767511039260,0.00437983,91381.0,91359.0,0.00968077]
[1767511039452,0.00437983,91374.0,91354.0,0.02063177]
[1767511039650,0.00437983,91371.0,91355.0,0.09308]
[1767511039858,0.00942138,91370.0,91355.0,0.09308]
[1767511040156,0.010949,91367.0,91355.0,0.09308]
[1767511040358,0.00942138,91370.0,91355.0,0.09308]
[1767511040359,0.01095,91364.0,91355.0,0.09308]
[1767511041063,0.02037038,91368.0,91355.0,0.09308]
[1767511041265,0.00942138,91368.0,91355.0,0.09308]
[1767511041464,0.010949,91372.0,91355.0,0.09308]
[1767511041664,0.02037038,91372.0,91355.0,0.09308]
[1767511042561,0.02037038,91372.0,91356.0,0.01425]
[1767511043173,0.010949,91369.0,91356.0,0.01425]
[1767511044472,0.00942138,91372.0,91356.0,0.01425]
[1767511044673,0.00942138,91372.0,91356.0,0.02393077]
[1767511044872,0.010949,91371.0,91356.0,0.02393077]
[1767511047979,0.010949,91369.0,91356.0,0.02393077]
[1767511048372,0.010949,91366.0,91356.0,0.02393077]
[1767511050777,0.010949,91367.0,91357.0,0.00979749]
[1767511053188,0.010949,91370.0,91357.0,0.00979749]
[1767511053380,0.010949,91370.0,91356.0,0.01425]
[1767511054084,0.010949,91370.0,91356.0,0.02411519]
[1767511054687,0.0111131,91373.0,91357.0,0.00986519]
[1767511054887,0.010949,91371.0,91357.0,0.00986519]
[1767511055087,0.0001641,91373.0,91357.0,0.00986519]
[1767511055088,0.010949,91369.0,91357.0,0.00986519]
[1767511056379,0.01355796,91373.0,91356.0,0.01425]
[1767511056685,0.0091679,91372.0,91356.0,0.01425]
[1767511058388,0.010949,91366.0,91356.0,0.01425]
[1767511058590,0.010949,91366.0,91353.0,0.01933613]
[1767511058890,0.010949,91366.0,91354.0,0.00986519]
[1767511059491,0.01095,91364.0,91354.0,0.00986519]
[1767511059678,0.01095,91364.0,91355.0,0.01546]
[1767511060284,0.010949,91366.0,91356.0,0.00986519]
[1767511060484,0.01095,91364.0,91355.0,0.01546]
[1767511062290,0.01095,91364.0,91355.0,0.02532519]
[1767511062493,0.0091679,91372.0,91355.0,0.02532519]
[1767511063292,0.01095,91365.0,91355.0,0.02532519]
[1767511063791,0.01095,91364.0,91355.0,0.02532519]
[1767511064585,0.01095,91363.0,91355.0,0.02532519]
[1767511064983,0.010949,91366.0,91355.0,0.02532519]
[1767511065594,0.0091679,91372.0,91355.0,0.02532519]
[1767511065792,0.01095,91365.0,91356.0,0.00986519]
[1767511065997,0.0001641,91373.0,91356.0,0.00986519]
[1767511066181,0.0260104,91372.0,91356.0,0.00986519]
[1767511066386,0.010949,91367.0,91356.0,0.00986519]
[1767511067090,0.010949,91372.0,91356.0,0.00986519]
[1767511067292,0.02615869,91371.0,91356.0,0.00986519]
[1767511067596,0.02615869,91370.0,91356.0,0.00986519]
[1767511067791,0.010949,91372.0,91356.0,0.00986519]
[1767511067991,0.02617316,91371.0,91356.0,0.00986519]
[1767511068193,0.02617316,91370.0,91356.0,0.00986519]
[1767511068398,0.02617316,91369.0,91356.0,0.00986519]
[1767511068601,0.02617316,91368.0,91356.0,0.00986519]
[1767511068791,0.01095,91365.0,91356.0,0.00986519]
[1767511069290,0.02623207,91364.0,91356.0,0.00986519]
[1767511069492,0.01095,91365.0,91356.0,0.00986519]
[1767511069694,0.02623251,91364.0,91356.0,0.00986519]
[1767511069998,0.01095,91365.0,91356.0,0.00986519]
[1767511070394,0.02623485,91364.0,91356.0,0.00986519]
[1767511070697,0.01095,91365.0,91356.0,0.00986519]
[1767511070895,0.02625904,91364.0,91356.0,0.00986519]
[1767511071092,0.01095,91363.0,91356.0,0.00986519]
[1767511071293,0.01095,91363.0,91355.0,0.01546]
[1767511071800,0.01447979,91370.0,91352.0,0.00986519]
[1767511072000,0.02626325,91369.0,91352.0,0.00986519]
[1767511072203,0.02626325,91368.0,91352.0,0.00986519]
[1767511072392,0.02626325,91367.0,91352.0,0.00986519]
[1767511072592,0.02626325,91366.0,91352.0,0.00986519]
[1767511072891,0.02626325,91365.0,91352.0,0.00986519]
[1767511073091,0.02626325,91364.0,91352.0,0.00986519]
[1767511073294,0.01447979,91370.0,91353.0,0.01825]
[1767511073498,0.010949,91368.0,91359.0,0.00986519]
[1767511073693,0.010949,91366.0,91355.0,0.00986519]
[1767511073899,0.02626324,91365.0,91355.0,0.00986519]
[1767511075297,0.02626324,91365.0,91356.0,0.00986519]
[1767511075492,0.010949,91370.0,91357.0,0.02081519]
[1767511075693,0.02626364,91369.0,91357.0,0.02081519]
[1767511075894,0.02626364,91368.0,91357.0,0.02081519]
[1767511076094,0.02626364,91367.0,91357.0,0.02081519]
[1767511076393,0.02626364,91366.0,91357.0,0.02081519]
[1767511076595,0.0001641,91373.0,91357.0,0.00986519]
[1767511076795,0.02626378,91372.0,91357.0,0.00986519]
[1767511076999,0.02626378,91371.0,91357.0,0.00986519]
[1767511077198,0.02626378,91370.0,91358.0,0.00952526]
[1767511077396,0.02626378,91369.0,91358.0,0.00952526]
[1767511077695,0.02626378,91368.0,91358.0,0.00952526]
[1767511077899,0.010949,91372.0,91358.0,0.00952526]
[1767511078099,0.0262614,91371.0,91358.0,0.00952526]
[1767511078300,0.0262614,91370.0,91358.0,0.00952526]
[1767511078500,0.0262614,91369.0,91358.0,0.00952526]
[1767511078691,0.0262614,91368.0,91358.0,0.00952526]
[1767511078901,0.010949,91372.0,91358.0,0.00952526]
[1767511079102,0.02626005,91371.0,91358.0,0.00952526]
[1767511079302,0.02626005,91370.0,91359.0,0.01095]
[1767511079502,0.02626005,91369.0,91359.0,0.01095]
[1767511079704,0.02626005,91368.0,91359.0,0.01095]
[1767511079906,0.010949,91372.0,91359.0,0.01095]
[1767511080105,0.02625905,91371.0,91359.0,0.01095]
[1767511080301,0.02625905,91370.0,91358.0,0.00952526]
[1767511080502,0.00555809,91378.0,91358.0,0.00952526]
[1767511080503,0.010948,91382.0,91370.0,0.010949]
[1767511080709,0.010948,91382.0,91370.0,0.00963463]
[1767511080907,0.00920832,91375.0,91359.0,0.00963463]
[1767511081111,0.00920832,91375.0,91358.0,0.10271463]
[1767511081508,0.010948,91375.0,91360.0,0.00963463]
[1767511081714,0.010949,91371.0,91358.0,0.09308]
[1767511082409,0.010949,91369.0,91357.0,0.0001641]
[1767511083115,0.02571071,91373.0,91357.0,0.0001641]
[1767511086313,0.010949,91371.0,91357.0,0.0001641]
[1767511090417,0.010949,91371.0,91358.0,0.01095]
[1767511091117,0.01476171,91373.0,91360.0,0.01095]
[1767511091314,0.00920832,91373.0,91362.0,0.01095]
[1767511093218,0.02015732,91373.0,91359.0,0.01095]
[1767511094812,0.00920832,91373.0,91357.0,0.0001641]
[1767511095719,0.00920832,91373.0,91362.0,0.01095]
[1767511096113,0.00920832,91373.0,91360.0,0.01095]
[1767511096717,0.0001641,91376.0,91364.0,0.01095]
[1767511097114,0.0001641,91376.0,91366.0,0.010949]
[1767511097718,0.0001641,91376.0,91367.0,0.01637]
[1767511105522,0.00590361,91392.0,91371.0,0.00963463]
[1767511105828,0.010947,91388.0,91375.0,0.02058263]
[1767511106025,0.02558643,91387.0,91375.0,0.02058263]
[1767511106228,0.02558643,91386.0,91375.0,0.00963463]
[1767511106428,0.01558643,91385.0,91377.0,0.00963463]
[1767511106631,0.010946,91394.0,91379.0,0.00924685]
[1767511106814,0.010946,91394.0,91380.0,0.00963463]
[1767511107019,0.09308,91396.0,91383.0,0.00963463]
[1767511108423,0.09308,91396.0,91384.0,0.010947]
[1767511112828,0.09308,91396.0,91385.0,0.01842]
[1767511113731,0.0001641,91399.0,91386.0,0.010947]
[1767511114039,0.00906164,91403.0,91385.0,0.02797006]
[1767511114040,0.11308664,91403.0,91385.0,0.02797006]
[1767511114528,0.02009385,91401.0,91388.0,0.010947]
[1767511115735,0.010945,91401.0,91388.0,0.010947]
[1767511115920,0.09308,91403.0,91386.0,0.00955006]
[1767511116230,0.09308,91403.0,91387.0,0.00955006]
[1767511116426,0.010945,91402.0,91389.0,0.010947]
[1767511117029,0.010945,91402.0,91386.0,0.010947]
[1767511118530,0.010945,91400.0,91386.0,0.010947]
[1767511121835,0.010946,91395.0,91385.0,0.00193902]
[1767511122042,0.010946,91395.0,91379.0,0.010948]
[1767511122236,0.04749861,91390.0,91366.0,0.11211829]
[1767511122536,0.04749861,91390.0,91372.0,0.0111131]
[1767511123436,0.05844561,91390.0,91374.0,0.010948]
[1767511125635,0.010947,91388.0,91374.0,0.010948]
[1767511128133,0.04749861,91390.0,91374.0,0.010948]
[1767511129243,0.04749861,91390.0,91376.0,0.010948]
[1767511130443,0.010947,91389.0,91376.0,0.010948]
[1767511136139,0.010947,91389.0,91377.0,0.010948]
[1767511137243,0.010947,91391.0,91378.0,0.010948]
[1767511138149,0.010947,91390.0,91378.0,0.010948]
[1767511140050,0.010947,91390.0,91379.0,0.010948]
[1767511141851,0.010947,91390.0,91377.0,0.010948]
[1767511142148,0.010947,91390.0,91377.0,0.02004458]
[1767511142456,0.010946,91393.0,91382.0,0.010947]
[1767511142751,0.010946,91395.0,91382.0,0.010947]
[1767511142951,0.02537629,91394.0,91382.0,0.010947]
[1767511143153,0.010946,91395.0,91382.0,0.010947]
[1767511143352,0.02537588,91394.0,91382.0,0.010947]
[1767511143553,0.010946,91395.0,91382.0,0.010947]
[1767511143753,0.02537606,91394.0,91382.0,0.010947]
[1767511144055,0.03632202,91393.0,91382.0,0.010947]
[1767511144252,0.010946,91393.0,91382.0,0.010947]
[1767511145354,0.010946,91393.0,91380.0,0.010948]
[1767511145554,0.010946,91391.0,91380.0,0.010948]
[1767511146851,0.010946,91394.0,91381.0,0.010948]
[1767511147051,0.02537889,91393.0,91381.0,0.02004458]
[1767511147251,0.010946,91394.0,91381.0,0.010948]
[1767511147452,0.02537956,91393.0,91382.0,0.028117]
[1767511147653,0.010946,91394.0,91382.0,0.028117]
[1767511147851,0.00917919,91399.0,91382.0,0.028117]
[1767511147852,0.02537949,91393.0,91382.0,0.028117]
[1767511148059,0.010946,91397.0,91382.0,0.028117]
[1767511148257,0.02537951,91396.0,91383.0,0.00909658]
[1767511148458,0.02537951,91395.0,91383.0,0.00909658]
[1767511148651,0.02537951,91394.0,91382.0,0.028117]
[1767511148852,0.02537951,91393.0,91382.0,0.028117]
[1767511149157,0.010946,91396.0,91382.0,0.028117]
[1767511149354,0.02538622,91395.0,91382.0,0.028117]
[1767511149558,0.02538622,91394.0,91382.0,0.028117]
[1767511149758,0.02538622,91393.0,91382.0,0.028117]
[1767511149958,0.010946,91396.0,91382.0,0.028117]
[1767511150153,0.0253865,91395.0,91382.0,0.028117]
[1767511150351,0.0253865,91394.0,91382.0,0.028117]
[1767511150548,0.0253865,91393.0,91382.0,0.028117]
[1767511150745,0.010946,91396.0,91382.0,0.028117]
[1767511150947,0.02538927,91395.0,91382.0,0.028117]
[1767511151160,0.02538927,91394.0,91382.0,0.028117]
[1767511151460,0.02538927,91393.0,91382.0,0.028117]
[1767511151651,0.010946,91396.0,91382.0,0.028117]
[1767511151851,0.02539101,91395.0,91382.0,0.028117]
[1767511152060,0.02539101,91394.0,91382.0,0.028117]
[1767511152261,0.02539101,91393.0,91382.0,0.028117]
[1767511152456,0.010946,91396.0,91382.0,0.03721358]
[1767511152660,0.02539181,91395.0,91384.0,0.010947]
[1767511152857,0.02539181,91394.0,91384.0,0.010947]
[1767511153061,0.010946,91399.0,91384.0,0.010947]
[1767511153360,0.02539174,91398.0,91384.0,0.010947]
[1767511153553,0.02539174,91397.0,91384.0,0.010947]
[1767511153753,0.02539174,91396.0,91384.0,0.010947]
[1767511153954,0.02539174,91395.0,91384.0,0.010947]
[1767511154150,0.02539174,91394.0,91384.0,0.010947]